[Event "Early-Titled-Tuesday-Blitz-May-28-2024"]
[Site "Chess.com"]
[Date "2024.05.28"]
[Round "5"]
[White "ckgchess"]
[Black "krstulov_alex"]
[Result "1-0"]
[WhiteElo "2896"]
[BlackElo "2659"]
[TimeControl "180+1"]
[EndTime "8:57:47 PDT"]
[Termination "ckgchess won by resignation"]

1. e4 {[%clk 0:03:00.9]} 1... e6 {[%clk 0:02:50.9]} 2. d4 {[%clk 0:03:00.2]}
2... d5 {[%clk 0:02:48.8]} 3. Nd2 {[%clk 0:03:00.6]} 3... c5 {[%clk 0:02:46.6]}
4. Ngf3 {[%clk 0:02:59.9]} 4... cxd4 {[%clk 0:02:44.2]} 5. exd5 {[%clk
0:02:59.4]} 5... Qxd5 {[%clk 0:02:43.9]} 6. Bc4 {[%clk 0:02:59.3]} 6... Qd6
{[%clk 0:02:44.4]} 7. O-O {[%clk 0:02:59.1]} 7... Nf6 {[%clk 0:02:43.2]} 8. Nb3
{[%clk 0:02:58]} 8... Nc6 {[%clk 0:02:42.4]} 9. Qe2 {[%clk 0:02:57.6]} 9... Be7
{[%clk 0:02:41.2]} 10. Rd1 {[%clk 0:02:57.5]} 10... O-O {[%clk 0:02:37.5]} 11.
Nbxd4 {[%clk 0:02:53.3]} 11... Nxd4 {[%clk 0:02:37.9]} 12. Rxd4 {[%clk
0:02:54.2]} 12... Qc5 {[%clk 0:02:34]} 13. Be3 {[%clk 0:02:48.5]} 13... Qh5
{[%clk 0:02:29]} 14. Rh4 {[%clk 0:02:40.8]} 14... Qa5 {[%clk 0:02:25.5]} 15. Rd1
{[%clk 0:02:25.5]} 15... h6 {[%clk 0:02:24.3]} 16. Bd2 {[%clk 0:02:05.2]} 16...
Qb6 {[%clk 0:02:19.7]} 17. Bc3 {[%clk 0:01:53]} 17... Nd5 {[%clk 0:02:13.3]} 18.
Bd4 {[%clk 0:01:42]} 18... Qc7 {[%clk 0:02:06]} 19. Rg4 {[%clk 0:01:33.7]} 19...
Bf6 {[%clk 0:02:01.6]} 20. Bxd5 {[%clk 0:01:17.3]} 20... Bxd4 {[%clk 0:02:00.5]}
21. Nxd4 {[%clk 0:01:06.6]} 21... exd5 {[%clk 0:01:59.9]} 22. Rg3 {[%clk
0:01:07.3]} 22... Bd7 {[%clk 0:01:48]} 23. Qh5 {[%clk 0:01:05.6]} 23... Rae8
{[%clk 0:01:35.5]} 24. h3 {[%clk 0:01:01.6]} 24... Qe5 {[%clk 0:01:24.8]} 25.
Qf3 {[%clk 0:00:51.2]} 25... Kh8 {[%clk 0:01:16.6]} 26. c3 {[%clk 0:00:50.8]}
26... Qe4 {[%clk 0:01:14.9]} 27. Kh2 {[%clk 0:00:37.5]} 27... Kh7 {[%clk
0:00:55.7]} 28. Rd2 {[%clk 0:00:35.3]} 28... f5 {[%clk 0:00:55]} 29. Re2 {[%clk
0:00:25.9]} 29... Qxf3 {[%clk 0:00:54]} 30. Rxf3 {[%clk 0:00:26.8]} 30... Re4
{[%clk 0:00:43.9]} 31. Rfe3 {[%clk 0:00:15.2]} 31... Rfe8 {[%clk 0:00:41.6]} 32.
Kg1 {[%clk 0:00:10.6]} 32... f4 {[%clk 0:00:37.6]} 33. Rxe4 {[%clk 0:00:10.9]}
33... dxe4 {[%clk 0:00:38.5]} 34. Nb3 {[%clk 0:00:09.8]} 34... Bb5 {[%clk
0:00:36.4]} 35. Re1 {[%clk 0:00:07.2]} 35... Bc4 {[%clk 0:00:34.7]} 36. Nc5
{[%clk 0:00:07.5]} 36... e3 {[%clk 0:00:31.2]} 37. fxe3 {[%clk 0:00:08.4]} 37...
fxe3 {[%clk 0:00:32.1]} 38. b3 {[%clk 0:00:07.3]} 38... Bd5 {[%clk 0:00:32.6]}
39. c4 {[%clk 0:00:07.8]} 39... Bc6 {[%clk 0:00:33.1]} 40. Nd3 {[%clk
0:00:07.1]} 40... g5 {[%clk 0:00:31.5]} 41. Re2 {[%clk 0:00:03.9]} 41... a5
{[%clk 0:00:31.3]} 42. Kf1 {[%clk 0:00:04]} 42... b6 {[%clk 0:00:27.2]} 43. Ke1
{[%clk 0:00:04.3]} 43... Kg6 {[%clk 0:00:26.4]} 44. Rc2 {[%clk 0:00:02.1]} 44...
Be4 {[%clk 0:00:25.9]} 45. Rc3 {[%clk 0:00:02.8]} 45... Bxg2 {[%clk 0:00:25.6]}
46. c5 {[%clk 0:00:02.9]} 46... b5 {[%clk 0:00:25.4]} 47. c6 {[%clk 0:00:03.3]}
47... b4 {[%clk 0:00:26.1]} 48. Rc5 {[%clk 0:00:03.1]} 48... Bxh3 {[%clk
0:00:23.5]} 49. c7 {[%clk 0:00:03.6]} 49... Bc8 {[%clk 0:00:22]} 50. Ke2 {[%clk
0:00:02.6]} 50... Bg4+ {[%clk 0:00:21.4]} 51. Ke1 {[%clk 0:00:02.9]} 51... h5
{[%clk 0:00:22.3]} 52. Ne5+ {[%clk 0:00:03.1]} 52... Rxe5 {[%clk 0:00:18.7]} 53.
Rxe5 {[%clk 0:00:04]} 53... h4 {[%clk 0:00:18.6]} 54. Re8 {[%clk 0:00:02.7]}
54... h3 {[%clk 0:00:18.5]} 55. c8=Q {[%clk 0:00:03.2]} 55... Bxc8 {[%clk
0:00:18.7]} 56. Rxc8 {[%clk 0:00:04.1]} 56... g4 {[%clk 0:00:19.5]} 57. Rh8
{[%clk 0:00:04.2]} 57... Kg5 {[%clk 0:00:18.7]} 58. Ke2 {[%clk 0:00:04.4]} 58...
Kf4 {[%clk 0:00:19.5]} 59. Rf8+ {[%clk 0:00:04.2]} 59... Kg3 {[%clk 0:00:19.8]}
60. Kxe3 {[%clk 0:00:04]} 60... h2 {[%clk 0:00:20.5]} 61. Rh8 {[%clk 0:00:04.5]}
61... Kg2 {[%clk 0:00:21.4]} 62. Kf4 {[%clk 0:00:04.2]} 62... g3 {[%clk
0:00:21.9]} 63. Rh7 {[%clk 0:00:02.5]} 63... Kf2 {[%clk 0:00:21.9]} 64. Rh6
{[%clk 0:00:02.5]} 64... Kg2 {[%clk 0:00:18.7]} 65. Kg4 {[%clk 0:00:01.8]} 65...
Kf2 {[%clk 0:00:18.8]} 66. Rh3 {[%clk 0:00:02.1]} 66... h1=Q {[%clk 0:00:05.9]}
67. Rxh1 {[%clk 0:00:03]} 67... g2 {[%clk 0:00:06.3]} 68. Rh2 {[%clk 0:00:03.6]}
68... Kf1 {[%clk 0:00:06.9]} 69. Rxg2 {[%clk 0:00:04.5]} 69... Kxg2 {[%clk
0:00:07.8]} 70. Kf4 {[%clk 0:00:05.4]} 70... Kf2 {[%clk 0:00:08.7]} 71. Ke4
{[%clk 0:00:06.3]} 71... Ke2 {[%clk 0:00:09.3]} 72. Kd4 {[%clk 0:00:07.2]} 72...
Kd2 {[%clk 0:00:10.2]} 73. Kc4 {[%clk 0:00:07.9]} 73... Kc2 {[%clk 0:00:10.4]}
74. Kb5 {[%clk 0:00:08.6]} 74... Kb2 {[%clk 0:00:10.4]} 75. Kxa5 {[%clk
0:00:09.2]} 75... Kc3 {[%clk 0:00:10.1]} 76. Kb5 {[%clk 0:00:09.3]} 1-0

[Event "Early-Titled-Tuesday-Blitz-May-28-2024"]
[Site "Chess.com"]
[Date "2024.05.28"]
[Round "5"]
[White "Kirill_Klukin"]
[Black "Iskusnyh"]
[Result "1-0"]
[WhiteElo "2886"]
[BlackElo "2612"]
[TimeControl "180+1"]
[EndTime "8:57:53 PDT"]
[Termination "Kirill_Klukin won on time"]

1. d4 {[%clk 0:03:00.9]} 1... d5 {[%clk 0:02:57.5]} 2. c4 {[%clk 0:03:00.8]}
2... c6 {[%clk 0:02:56.8]} 3. Nf3 {[%clk 0:03:00.7]} 3... Nf6 {[%clk 0:02:56.3]}
4. Nc3 {[%clk 0:03:00.8]} 4... e6 {[%clk 0:02:54.9]} 5. e3 {[%clk 0:03:00.7]}
5... a6 {[%clk 0:02:54.2]} 6. Bd3 {[%clk 0:02:56.6]} 6... dxc4 {[%clk
0:02:52.7]} 7. Bxc4 {[%clk 0:02:56.9]} 7... b5 {[%clk 0:02:52.9]} 8. Be2 {[%clk
0:02:57.5]} 8... c5 {[%clk 0:02:51.4]} 9. O-O {[%clk 0:02:50.8]} 9... Bb7 {[%clk
0:02:48.3]} 10. b3 {[%clk 0:02:51.1]} 10... Nbd7 {[%clk 0:02:45.5]} 11. Bb2
{[%clk 0:02:51.3]} 11... Be7 {[%clk 0:02:33.1]} 12. a4 {[%clk 0:02:44.6]} 12...
b4 {[%clk 0:02:31.2]} 13. Nb1 {[%clk 0:02:45.1]} 13... O-O {[%clk 0:02:29.8]}
14. Nbd2 {[%clk 0:02:45.7]} 14... Qc7 {[%clk 0:02:16.2]} 15. Rc1 {[%clk
0:02:43.3]} 15... Rac8 {[%clk 0:02:14.8]} 16. Nc4 {[%clk 0:02:40.7]} 16... Qb8
{[%clk 0:02:13.6]} 17. Nfe5 {[%clk 0:02:34.9]} 17... Rfd8 {[%clk 0:02:08.7]} 18.
Nxd7 {[%clk 0:02:22.4]} 18... Nxd7 {[%clk 0:02:03.5]} 19. Bf3 {[%clk 0:02:20.8]}
19... cxd4 {[%clk 0:01:54.3]} 20. Bxb7 {[%clk 0:01:36.1]} 20... Qxb7 {[%clk
0:01:51.4]} 21. Bxd4 {[%clk 0:01:10.4]} 21... Nf8 {[%clk 0:01:26.1]} 22. Qg4
{[%clk 0:01:03.3]} 22... f6 {[%clk 0:01:18.2]} 23. Rfd1 {[%clk 0:01:03.2]} 23...
e5 {[%clk 0:01:16.7]} 24. Bb6 {[%clk 0:00:56.7]} 24... Rxd1+ {[%clk 0:01:12]}
25. Rxd1 {[%clk 0:00:57.6]} 25... h5 {[%clk 0:00:51.9]} 26. Qe2 {[%clk
0:00:53.2]} 26... Ne6 {[%clk 0:00:46.8]} 27. a5 {[%clk 0:00:53]} 27... h4 {[%clk
0:00:43.5]} 28. Qg4 {[%clk 0:00:50.1]} 28... Ng5 {[%clk 0:00:32.5]} 29. Rd7
{[%clk 0:00:37.1]} 29... Qc6 {[%clk 0:00:16.4]} 30. Rxe7 {[%clk 0:00:34.4]}
30... h3 {[%clk 0:00:16.6]} 31. f4 {[%clk 0:00:11.8]} 31... Qe4 {[%clk
0:00:08.4]} 32. Qxc8+ {[%clk 0:00:11.1]} 32... Kh7 {[%clk 0:00:08.9]} 33. Qg4
{[%clk 0:00:06.8]} 33... Qb1+ {[%clk 0:00:08.1]} 34. Kf2 {[%clk 0:00:07.2]}
34... Ne4+ {[%clk 0:00:07.8]} 35. Kf3 {[%clk 0:00:04.2]} 35... Qd1+ {[%clk
0:00:07.7]} 36. Kxe4 {[%clk 0:00:03.7]} 36... Qxg4 {[%clk 0:00:07.8]} 37. gxh3
{[%clk 0:00:04.4]} 37... Qg2+ {[%clk 0:00:06.5]} 38. Kd3 {[%clk 0:00:02.2]}
38... Qf1+ {[%clk 0:00:06.1]} 39. Ke4 {[%clk 0:00:02.5]} 39... Qb1+ {[%clk
0:00:05.6]} 40. Kd5 {[%clk 0:00:02.8]} 40... Qxb3 {[%clk 0:00:05.4]} 41. fxe5
{[%clk 0:00:02.7]} 41... Qd3+ {[%clk 0:00:05.4]} 42. Kc5 {[%clk 0:00:02.1]}
42... fxe5 {[%clk 0:00:03]} 43. Rxe5 {[%clk 0:00:03]} 43... b3 {[%clk
0:00:02.9]} 44. Rh5+ {[%clk 0:00:03]} 44... Kg8 {[%clk 0:00:02.1]} 45. Rd5
{[%clk 0:00:03.9]} 45... Qe2 {[%clk 0:00:01]} 46. Rd8+ {[%clk 0:00:04.5]} 46...
Kh7 {[%clk 0:00:01]} 47. Rd2 {[%clk 0:00:05.4]} 47... Qf3 {[%clk 0:00:01]} 48.
Kb4 {[%clk 0:00:05.9]} 48... Qf5 {[%clk 0:00:01.6]} 49. Bd4 {[%clk 0:00:06.6]}
49... Qf7 {[%clk 0:00:02.3]} 50. Kc3 {[%clk 0:00:07.2]} 50... Qb7 {[%clk
0:00:03.2]} 51. Rb2 {[%clk 0:00:07.5]} 51... Qb5 {[%clk 0:00:03.4]} 52. Rxb3
{[%clk 0:00:08.2]} 52... Qc6 {[%clk 0:00:04]} 53. Rb6 {[%clk 0:00:08.8]} 53...
Qg2 {[%clk 0:00:03.9]} 54. Rxa6 {[%clk 0:00:08.3]} 54... Qxh2 {[%clk 0:00:03.3]}
55. Ra7 {[%clk 0:00:08.9]} 55... Qxh3 {[%clk 0:00:03.6]} 56. Rxg7+ {[%clk
0:00:09.5]} 56... Kh6 {[%clk 0:00:04.5]} 57. Re7 {[%clk 0:00:09.6]} 57... Qf1
{[%clk 0:00:03.1]} 58. Re6+ {[%clk 0:00:09.9]} 58... Kh7 {[%clk 0:00:02.8]} 59.
Re7+ {[%clk 0:00:10]} 59... Kh6 {[%clk 0:00:03.1]} 60. Re5 {[%clk 0:00:10.3]}
60... Qc1+ {[%clk 0:00:02.2]} 61. Kb4 {[%clk 0:00:10.9]} 61... Qb1+ {[%clk
0:00:02.2]} 62. Kc5 {[%clk 0:00:11.5]} 62... Qa2 {[%clk 0:00:01.3]} 63. Re6+
{[%clk 0:00:11.8]} 63... Kh7 {[%clk 0:00:01.2]} 64. a6 {[%clk 0:00:12.4]} 64...
Qc2 {[%clk 0:00:01]} 65. Rb6 {[%clk 0:00:12.7]} 65... Qa4 {[%clk 0:00:01.5]} 66.
Rb7+ {[%clk 0:00:12.8]} 66... Kg8 {[%clk 0:00:01.5]} 67. Rb8+ {[%clk 0:00:13.1]}
67... Kf7 {[%clk 0:00:01.2]} 68. Rb6 {[%clk 0:00:14]} 68... Qa2 {[%clk 0:00:01]}
69. e4 {[%clk 0:00:14.6]} 1-0

[Event "Early-Titled-Tuesday-Blitz-May-28-2024"]
[Site "Chess.com"]
[Date "2024.05.28"]
[Round "5"]
[White "LileKoridze"]
[Black "TitarovVasiliYouTube"]
[Result "1/2-1/2"]
[WhiteElo "2440"]
[BlackElo "2581"]
[TimeControl "180+1"]
[EndTime "8:57:53 PDT"]
[Termination "Game drawn by repetition"]

1. d4 {[%clk 0:03:00.9]} 1... d6 {[%clk 0:02:58.7]} 2. Nf3 {[%clk 0:03:00.6]}
2... Nf6 {[%clk 0:02:58.4]} 3. c4 {[%clk 0:03:00.5]} 3... Bf5 {[%clk 0:02:57.4]}
4. Nc3 {[%clk 0:03:00.6]} 4... Nbd7 {[%clk 0:02:49.6]} 5. e3 {[%clk 0:03:00.6]}
5... Ne4 {[%clk 0:02:49.5]} 6. Nxe4 {[%clk 0:02:51.4]} 6... Bxe4 {[%clk
0:02:50.4]} 7. Bd3 {[%clk 0:02:51.7]} 7... Bxd3 {[%clk 0:02:48]} 8. Qxd3 {[%clk
0:02:51.3]} 8... g6 {[%clk 0:02:46]} 9. O-O {[%clk 0:02:51.4]} 9... Bg7 {[%clk
0:02:46.3]} 10. b3 {[%clk 0:02:51.3]} 10... O-O {[%clk 0:02:46.8]} 11. Bb2
{[%clk 0:02:51.2]} 11... c5 {[%clk 0:02:40.3]} 12. Rad1 {[%clk 0:02:50.7]} 12...
cxd4 {[%clk 0:02:40.5]} 13. exd4 {[%clk 0:02:40.6]} 13... a5 {[%clk 0:02:37]}
14. Bc3 {[%clk 0:02:38.5]} 14... a4 {[%clk 0:02:33.9]} 15. Rfe1 {[%clk
0:02:38.3]} 15... axb3 {[%clk 0:02:33.2]} 16. axb3 {[%clk 0:02:38.3]} 16... e6
{[%clk 0:02:32.3]} 17. Bb4 {[%clk 0:02:32.8]} 17... Qb6 {[%clk 0:02:30.5]} 18.
Qc3 {[%clk 0:02:27.7]} 18... Ra6 {[%clk 0:02:12.4]} 19. h3 {[%clk 0:02:25.6]}
19... Rfa8 {[%clk 0:02:11.4]} 20. Ng5 {[%clk 0:02:15.7]} 20... Nc5 {[%clk
0:01:33.5]} 21. Qf3 {[%clk 0:02:04.2]} 21... Rf8 {[%clk 0:00:54.9]} 22. dxc5
{[%clk 0:01:55.7]} 22... Qxb4 {[%clk 0:00:54.5]} 23. cxd6 {[%clk 0:01:55.8]}
23... Rxd6 {[%clk 0:00:53.9]} 24. Rxd6 {[%clk 0:01:55.2]} 24... Qxd6 {[%clk
0:00:54.8]} 25. Qxb7 {[%clk 0:01:47.2]} 25... h6 {[%clk 0:00:49.4]} 26. Ne4
{[%clk 0:01:27.1]} 26... Qf4 {[%clk 0:00:32.2]} 27. Qd7 {[%clk 0:01:19.6]} 27...
Rb8 {[%clk 0:00:25.3]} 28. Qd3 {[%clk 0:01:17]} 28... Qc7 {[%clk 0:00:19.7]} 29.
Rb1 {[%clk 0:01:13.8]} 29... Qa5 {[%clk 0:00:19.6]} 30. c5 {[%clk 0:01:07.5]}
30... Qb4 {[%clk 0:00:16.7]} 31. c6 {[%clk 0:01:06.1]} 31... Be5 {[%clk
0:00:16.2]} 32. Qd7 {[%clk 0:01:03.6]} 32... Qxe4 {[%clk 0:00:14.4]} 33. Rd1
{[%clk 0:01:02]} 33... Qc2 {[%clk 0:00:11.8]} 34. Rd3 {[%clk 0:01:00]} 34... Kg7
{[%clk 0:00:08.4]} 35. g3 {[%clk 0:00:57.6]} 35... Rxb3 {[%clk 0:00:08.5]} 36.
Rxb3 {[%clk 0:00:57.8]} 36... Qxb3 {[%clk 0:00:09.4]} 37. c7 {[%clk 0:00:58.4]}
37... Qb1+ {[%clk 0:00:08.1]} 38. Kh2 {[%clk 0:00:57.8]} 38... Bxc7 {[%clk
0:00:08.1]} 39. Qxc7 {[%clk 0:00:58.3]} 39... Qf5 {[%clk 0:00:08.5]} 40. Qc3+
{[%clk 0:00:58.3]} 40... Qf6 {[%clk 0:00:09.4]} 41. Qe3 {[%clk 0:00:58]} 41...
h5 {[%clk 0:00:09.9]} 42. h4 {[%clk 0:00:55.6]} 42... Qf5 {[%clk 0:00:10.3]} 43.
Qd4+ {[%clk 0:00:55.1]} 43... Kh7 {[%clk 0:00:11.2]} 44. Qa7 {[%clk 0:00:54.5]}
44... e5 {[%clk 0:00:11.6]} 45. Qe3 {[%clk 0:00:54.6]} 45... Kg7 {[%clk
0:00:12]} 46. Qa7 {[%clk 0:00:53.8]} 46... Qe6 {[%clk 0:00:12.6]} 47. Qe3 {[%clk
0:00:53.9]} 47... Qd5 {[%clk 0:00:13.1]} 48. Qa7 {[%clk 0:00:52.6]} 48... Qd4
{[%clk 0:00:13.5]} 49. Qa2 {[%clk 0:00:53.2]} 49... e4 {[%clk 0:00:12.9]} 50.
Qe2 {[%clk 0:00:53.1]} 50... Kf6 {[%clk 0:00:11.9]} 51. Qa2 {[%clk 0:00:52.7]}
51... Qe5 {[%clk 0:00:09.4]} 52. Qa6+ {[%clk 0:00:52.6]} 52... Qe6 {[%clk
0:00:09.5]} 53. Qa1+ {[%clk 0:00:52.8]} 53... Kf5 {[%clk 0:00:09.4]} 54. Qa5+
{[%clk 0:00:52.6]} 54... Kf6 {[%clk 0:00:08.1]} 55. Qa1+ {[%clk 0:00:52.4]}
55... Qe5 {[%clk 0:00:08]} 56. Qa6+ {[%clk 0:00:52.3]} 56... Kf5 {[%clk
0:00:08.6]} 57. Qe2 {[%clk 0:00:51.6]} 57... Qd4 {[%clk 0:00:08.1]} 58. Kh3
{[%clk 0:00:51.2]} 58... Qd3 {[%clk 0:00:08.5]} 59. Qe1 {[%clk 0:00:49.5]} 59...
Qf3 {[%clk 0:00:08.6]} 60. Kh2 {[%clk 0:00:49.2]} 60... Kf6 {[%clk 0:00:08.1]}
61. Qd2 {[%clk 0:00:48.7]} 61... Kg7 {[%clk 0:00:07.9]} 62. Qd4+ {[%clk
0:00:47.7]} 62... Kh7 {[%clk 0:00:05.6]} 63. Qa7 {[%clk 0:00:47.9]} 63... Kg7
{[%clk 0:00:04.2]} 64. Qd4+ {[%clk 0:00:47.9]} 64... Qf6 {[%clk 0:00:02.7]} 65.
Qe3 {[%clk 0:00:42.8]} 65... Qf5 {[%clk 0:00:03.2]} 66. Kg1 {[%clk 0:00:42]}
66... Qe5 {[%clk 0:00:03.3]} 67. Kg2 {[%clk 0:00:42.1]} 67... Kf6 {[%clk
0:00:03.9]} 68. Qh6 {[%clk 0:00:40.8]} 68... Qf5 {[%clk 0:00:03.7]} 69. Qh8+
{[%clk 0:00:40.6]} 69... Ke7 {[%clk 0:00:03.8]} 70. Qd4 {[%clk 0:00:39.5]} 70...
Qf3+ {[%clk 0:00:04.2]} 71. Kh2 {[%clk 0:00:40.1]} 71... Ke6 {[%clk 0:00:02.6]}
72. Qb6+ {[%clk 0:00:36.8]} 72... Kf5 {[%clk 0:00:02.5]} 73. Qc5+ {[%clk
0:00:36.8]} 73... Kf6 {[%clk 0:00:02.7]} 74. Qd4+ {[%clk 0:00:35.4]} 74... Ke6
{[%clk 0:00:02.5]} 75. Qb6+ {[%clk 0:00:34.6]} 75... Ke7 {[%clk 0:00:02.9]} 76.
Qc5+ {[%clk 0:00:34.6]} 76... Ke8 {[%clk 0:00:02.9]} 77. Qb5+ {[%clk 0:00:33.8]}
77... Ke7 {[%clk 0:00:03.8]} 78. Qc5+ {[%clk 0:00:33.4]} 78... Kf6 {[%clk
0:00:04.1]} 79. Qd4+ {[%clk 0:00:33.4]} 79... Kf5 {[%clk 0:00:03.8]} 80. Qd5+
{[%clk 0:00:32.1]} 80... Kf6 {[%clk 0:00:03.7]} 81. Qd4+ {[%clk 0:00:32.5]}
1/2-1/2

[Event "Early-Titled-Tuesday-Blitz-May-28-2024"]
[Site "Chess.com"]
[Date "2024.05.28"]
[Round "5"]
[White "Alex_Sahakyan2006"]
[Black "Aryan_Tamadon"]
[Result "1-0"]
[WhiteElo "2837"]
[BlackElo "2504"]
[TimeControl "180+1"]
[EndTime "8:57:54 PDT"]
[Termination "Alex_Sahakyan2006 won by resignation"]

1. e4 {[%clk 0:02:52.4]} 1... d5 {[%clk 0:02:58.9]} 2. exd5 {[%clk 0:02:51.8]}
2... Qxd5 {[%clk 0:02:59.8]} 3. Nc3 {[%clk 0:02:51.6]} 3... Qd6 {[%clk
0:03:00.4]} 4. Nf3 {[%clk 0:02:50.5]} 4... Nf6 {[%clk 0:03:01.1]} 5. d4 {[%clk
0:02:50.9]} 5... Nc6 {[%clk 0:03:01.7]} 6. Bb5 {[%clk 0:02:49]} 6... a6 {[%clk
0:03:01.4]} 7. Ba4 {[%clk 0:02:45.4]} 7... b5 {[%clk 0:03:01.4]} 8. Bb3 {[%clk
0:02:44.9]} 8... Na5 {[%clk 0:03:01.2]} 9. Ne5 {[%clk 0:02:43.2]} 9... Nxb3
{[%clk 0:03:01.3]} 10. axb3 {[%clk 0:02:43]} 10... Bb7 {[%clk 0:03:01.3]} 11.
Bf4 {[%clk 0:02:40.8]} 11... Qb6 {[%clk 0:03:01.6]} 12. O-O {[%clk 0:02:28.7]}
12... e6 {[%clk 0:03:02.2]} 13. Re1 {[%clk 0:02:22.8]} 13... Rd8 {[%clk
0:03:02.7]} 14. Be3 {[%clk 0:02:12.9]} 14... c5 {[%clk 0:02:55.9]} 15. dxc5
{[%clk 0:02:06.5]} 15... Bxc5 {[%clk 0:02:56.8]} 16. Bxc5 {[%clk 0:02:06.2]}
16... Qxc5 {[%clk 0:02:57.7]} 17. Qc1 {[%clk 0:01:44.3]} 17... O-O {[%clk
0:02:55.5]} 18. Qf4 {[%clk 0:01:44.1]} 18... Rd4 {[%clk 0:02:51.1]} 19. Nd3
{[%clk 0:01:36.1]} 19... Qb6 {[%clk 0:02:47.7]} 20. Qe3 {[%clk 0:01:27.2]} 20...
Rfd8 {[%clk 0:02:44.7]} 21. Ne2 {[%clk 0:01:26.8]} 21... Qc6 {[%clk 0:02:42.1]}
22. f3 {[%clk 0:01:21.7]} 22... R4d6 {[%clk 0:02:38.8]} 23. Rac1 {[%clk
0:01:07.4]} 23... Ng4 {[%clk 0:02:39.4]} 24. Qg5 {[%clk 0:00:52.6]} 24... Qb6+
{[%clk 0:02:38.8]} 25. Qc5 {[%clk 0:00:52.8]} 25... Ne3 {[%clk 0:02:32.4]} 26.
Qxb6 {[%clk 0:00:51.5]} 26... Rxb6 {[%clk 0:02:33.3]} 27. Nc5 {[%clk 0:00:46.9]}
27... Bc8 {[%clk 0:02:19.8]} 28. Kf2 {[%clk 0:00:44]} 28... Nd5 {[%clk 0:02:20]}
29. Red1 {[%clk 0:00:40.1]} 29... Rbd6 {[%clk 0:02:13.4]} 30. Ne4 {[%clk
0:00:35.2]} 30... R6d7 {[%clk 0:02:10.3]} 31. c3 {[%clk 0:00:33]} 31... f5
{[%clk 0:02:06.8]} 32. Nc5 {[%clk 0:00:29]} 32... Rc7 {[%clk 0:02:01]} 33. Nd3
{[%clk 0:00:27.4]} 33... Kf7 {[%clk 0:01:52.7]} 34. Ndf4 {[%clk 0:00:22.7]}
34... Rcd7 {[%clk 0:01:41.7]} 35. Nxd5 {[%clk 0:00:22]} 35... Rxd5 {[%clk
0:01:42.6]} 36. Rxd5 {[%clk 0:00:22.1]} 36... Rxd5 {[%clk 0:01:43.5]} 37. Ke3
{[%clk 0:00:22.5]} 37... e5 {[%clk 0:01:42.8]} 38. g3 {[%clk 0:00:22.4]} 38...
Bb7 {[%clk 0:01:41.7]} 39. f4 {[%clk 0:00:18.7]} 39... Kf6 {[%clk 0:01:37.8]}
40. c4 {[%clk 0:00:18]} 40... Rc5 {[%clk 0:01:36.5]} 41. fxe5+ {[%clk 0:00:08]}
41... Rxe5+ {[%clk 0:01:37.4]} 42. Kf2 {[%clk 0:00:08.4]} 42... g5 {[%clk
0:01:35.9]} 43. c5 {[%clk 0:00:07.6]} 43... Rd5 {[%clk 0:01:31.2]} 44. c6 {[%clk
0:00:07.7]} 44... Bc8 {[%clk 0:01:31.8]} 45. c7 {[%clk 0:00:07.8]} 45... Ke6
{[%clk 0:01:32.1]} 46. Rc6+ {[%clk 0:00:07.4]} 46... Rd6 {[%clk 0:01:32.7]} 47.
Nd4+ {[%clk 0:00:06.4]} 47... Kd5 {[%clk 0:01:33]} 48. Rxd6+ {[%clk 0:00:06.1]}
48... Kxd6 {[%clk 0:01:33.9]} 49. Nf3 {[%clk 0:00:06.7]} 49... h6 {[%clk
0:01:33.9]} 50. h4 {[%clk 0:00:05.5]} 50... gxh4 {[%clk 0:01:31.5]} 51. Nxh4
{[%clk 0:00:06.1]} 51... Kxc7 {[%clk 0:01:31.9]} 52. Ke3 {[%clk 0:00:06.6]}
52... Kd6 {[%clk 0:01:32.3]} 53. Kd4 {[%clk 0:00:05.8]} 53... Be6 {[%clk
0:01:30.9]} 54. b4 {[%clk 0:00:06.1]} 54... Bd7 {[%clk 0:01:31.4]} 55. Ng6
{[%clk 0:00:06.1]} 55... Bc8 {[%clk 0:01:31.6]} 56. Nf4 {[%clk 0:00:05.5]} 56...
Bb7 {[%clk 0:01:31.4]} 57. Nh5 {[%clk 0:00:05]} 57... Be4 {[%clk 0:01:31.5]} 58.
Nf6 {[%clk 0:00:05.1]} 58... Bc2 {[%clk 0:01:31.4]} 59. Ng8 {[%clk 0:00:05.2]}
59... h5 {[%clk 0:01:29.2]} 60. Nf6 {[%clk 0:00:05.3]} 60... Bd1 {[%clk
0:01:24.8]} 61. Nd5 {[%clk 0:00:05.5]} 61... Ke6 {[%clk 0:01:22.2]} 62. Nc7+
{[%clk 0:00:05.7]} 62... Kf6 {[%clk 0:01:22.7]} 63. Nxa6 {[%clk 0:00:05.8]}
63... Kg5 {[%clk 0:01:23.4]} 64. Nc7 {[%clk 0:00:05.9]} 64... Be2 {[%clk
0:01:23.2]} 65. Ke3 {[%clk 0:00:06.2]} 65... Bc4 {[%clk 0:01:22.3]} 66. Kf3
{[%clk 0:00:06.5]} 66... Bd3 {[%clk 0:01:19.8]} 67. Ne6+ {[%clk 0:00:05.8]}
67... Kf6 {[%clk 0:01:19.3]} 68. Nd4 {[%clk 0:00:06.2]} 68... Be4+ {[%clk
0:01:19.2]} 69. Kf4 {[%clk 0:00:06.5]} 69... Bd3 {[%clk 0:01:19]} 70. Nf3 {[%clk
0:00:06.4]} 70... Bf1 {[%clk 0:01:16.8]} 71. Nd4 {[%clk 0:00:06.1]} 71... Bd3
{[%clk 0:01:17.2]} 72. b3 {[%clk 0:00:06.4]} 72... Kg6 {[%clk 0:01:17]} 73. Nc6
{[%clk 0:00:04.9]} 73... Bc2 {[%clk 0:01:12.5]} 74. Ne5+ {[%clk 0:00:04.4]}
74... Kf6 {[%clk 0:01:12.3]} 75. Nf3 {[%clk 0:00:04.4]} 75... Bxb3 {[%clk
0:01:12.3]} 76. Nd4 {[%clk 0:00:04.8]} 76... Bc4 {[%clk 0:01:05.9]} 77. Nxf5
{[%clk 0:00:05.1]} 77... Kg6 {[%clk 0:01:06.5]} 78. Ne3 {[%clk 0:00:04.9]} 78...
Be2 {[%clk 0:01:06.5]} 79. Nd5 {[%clk 0:00:03.7]} 79... Kh6 {[%clk 0:01:06.2]}
80. Kf5 {[%clk 0:00:03.5]} 80... Bd3+ {[%clk 0:01:06.5]} 81. Kf6 {[%clk
0:00:03.9]} 81... Bc4 {[%clk 0:01:07.2]} 82. Ne3 {[%clk 0:00:04.2]} 82... Be2
{[%clk 0:01:07.7]} 83. Nf5+ {[%clk 0:00:04.5]} 83... Kh7 {[%clk 0:01:07.9]} 84.
Kg5 {[%clk 0:00:04.1]} 84... Kg8 {[%clk 0:01:07]} 85. Nd6 {[%clk 0:00:03.9]}
85... Kg7 {[%clk 0:01:06.7]} 86. Ne4 {[%clk 0:00:03.9]} 86... Kf7 {[%clk
0:01:05.4]} 87. Nf6 {[%clk 0:00:04.3]} 87... Ke6 {[%clk 0:01:04.5]} 88. Nxh5
{[%clk 0:00:04.6]} 88... Kd5 {[%clk 0:01:05.3]} 89. Nf4+ {[%clk 0:00:04.9]}
89... Kc4 {[%clk 0:01:06]} 90. Nxe2 {[%clk 0:00:05.8]} 90... Kxb4 {[%clk
0:01:06.9]} 91. Kf4 {[%clk 0:00:06.5]} 91... Kc4 {[%clk 0:01:07.4]} 92. g4
{[%clk 0:00:06.8]} 92... b4 {[%clk 0:01:08.1]} 93. Nc1 {[%clk 0:00:05]} 93...
Kc3 {[%clk 0:01:08.4]} 94. g5 {[%clk 0:00:05.7]} 94... Kc2 {[%clk 0:01:08.1]}
95. Ne2 {[%clk 0:00:04.4]} 95... b3 {[%clk 0:01:08.1]} 96. Nd4+ {[%clk
0:00:04.5]} 96... Kc3 {[%clk 0:01:08.5]} 97. Nxb3 {[%clk 0:00:05.3]} 97... Kxb3
{[%clk 0:01:09.4]} 98. g6 {[%clk 0:00:06]} 1-0